[Event "*** Titled Tuesday Blitz"]
[Site "Chess.com"]
[Date "2020.05.05"]
[Round "3"]
[White "quesfr"]
[Black "dukicz123"]
[Result "0-1"]
[WhiteElo "2253"]
[BlackElo "2494"]
[TimeControl "180+1"]
[EndTime "10:29:17 PDT"]
[Termination "dukicz123 won by resignation"]

1. e4 {[%clk 0:03:00.9]} 1... e5 {[%clk 0:02:59.3]} 2. Nf3 {[%clk 0:03:00.5]}
2... Nc6 {[%clk 0:02:59.6]} 3. Nc3 {[%clk 0:03:00.9]} 3... Nf6 {[%clk
0:02:59.7]} 4. d4 {[%clk 0:03:01.5]} 4... exd4 {[%clk 0:02:59.9]} 5. Nxd4 {[%clk
0:03:02.4]} 5... Bb4 {[%clk 0:03:00.2]} 6. Nxc6 {[%clk 0:03:03]} 6... bxc6
{[%clk 0:03:01.1]} 7. Bd3 {[%clk 0:03:03.5]} 7... d5 {[%clk 0:03:01.2]} 8. exd5
{[%clk 0:03:04.4]} 8... O-O {[%clk 0:03:01.6]} 9. O-O {[%clk 0:03:03.7]} 9...
Bg4 {[%clk 0:03:02.2]} 10. f3 {[%clk 0:03:03.9]} 10... Bh5 {[%clk 0:03:02.5]}
11. g4 {[%clk 0:03:04.3]} 11... Bg6 {[%clk 0:03:00.8]} 12. Bxg6 {[%clk
0:03:01.7]} 12... hxg6 {[%clk 0:02:56.1]} 13. dxc6 {[%clk 0:02:52.5]} 13... Qe7
{[%clk 0:02:44.1]} 14. Qd3 {[%clk 0:02:45.3]} 14... Rad8 {[%clk 0:02:21.9]} 15.
Qc4 {[%clk 0:02:41.3]} 15... Bc5+ {[%clk 0:02:20.4]} 16. Kg2 {[%clk 0:02:39]}
16... Rd4 {[%clk 0:02:20.2]} 17. Qe2 {[%clk 0:02:34]} 17... Qd8 {[%clk 0:02:01]}
18. Be3 {[%clk 0:02:05.9]} 18... Re8 {[%clk 0:01:59.3]} 19. Bxd4 {[%clk
0:02:06]} 19... Rxe2+ {[%clk 0:01:58.7]} 20. Nxe2 {[%clk 0:02:06.9]} 20... Bxd4
{[%clk 0:00:53.6]} 21. Rfd1 {[%clk 0:01:51.1]} 21... Qd5 {[%clk 0:00:51.1]} 22.
Nxd4 {[%clk 0:01:49.2]} 22... Nxg4 {[%clk 0:00:47.8]} 23. c4 {[%clk 0:01:39.5]}
23... Ne3+ {[%clk 0:00:45.7]} 24. Kh1 {[%clk 0:01:35.6]} 24... Qg5 {[%clk
0:00:30.3]} 25. Rd2 {[%clk 0:01:23]} 25... Nxc4 {[%clk 0:00:26.5]} 26. Rg2
{[%clk 0:01:19.2]} 26... Qf4 {[%clk 0:00:25.4]} 27. Rg4 {[%clk 0:01:09]} 27...
Qe3 {[%clk 0:00:25.5]} 28. Re4 {[%clk 0:00:53.2]} 28... Qd3 {[%clk 0:00:25.1]}
29. Re8+ {[%clk 0:00:33.3]} 29... Kh7 {[%clk 0:00:24.9]} 30. Rd8 {[%clk
0:00:34.2]} 30... Nd6 {[%clk 0:00:21.3]} 31. Rxd6 {[%clk 0:00:24.8]} 31... cxd6
{[%clk 0:00:21]} 32. Rc1 {[%clk 0:00:17.7]} 32... Qe3 {[%clk 0:00:14.1]} 33. Rc2
{[%clk 0:00:14.1]} 33... Qxd4 {[%clk 0:00:14.1]} 34. c7 {[%clk 0:00:13.8]} 34...
Qd1+ {[%clk 0:00:14.1]} 0-1

[Event "*** Titled Tuesday Blitz"]
[Site "Chess.com"]
[Date "2020.05.05"]
[Round "3"]
[White "Spartakus1975"]
[Black "mbachez"]
[Result "1-0"]
[WhiteElo "2743"]
[BlackElo "2439"]
[TimeControl "180+1"]
[EndTime "10:29:18 PDT"]
[Termination "Spartakus1975 won by resignation"]

1. e4 {[%clk 0:02:23.4]} 1... e6 {[%clk 0:02:59.2]} 2. d4 {[%clk 0:02:20.1]}
2... d5 {[%clk 0:02:59.1]} 3. exd5 {[%clk 0:02:18.7]} 3... exd5 {[%clk
0:02:58.7]} 4. Nf3 {[%clk 0:02:17.2]} 4... c5 {[%clk 0:02:58.5]} 5. Bb5+ {[%clk
0:02:10]} 5... Nc6 {[%clk 0:02:58.4]} 6. O-O {[%clk 0:02:08.7]} 6... Bd6 {[%clk
0:02:56.9]} 7. dxc5 {[%clk 0:02:08.6]} 7... Bxc5 {[%clk 0:02:56.8]} 8. Be3
{[%clk 0:01:56]} 8... Bxe3 {[%clk 0:02:51.9]} 9. Re1 {[%clk 0:01:51.2]} 9... Ne7
{[%clk 0:02:32.4]} 10. Rxe3 {[%clk 0:01:33.7]} 10... O-O {[%clk 0:02:31.7]} 11.
Nbd2 {[%clk 0:01:20]} 11... Nf5 {[%clk 0:02:23.7]} 12. Re1 {[%clk 0:01:18.1]}
12... Qb6 {[%clk 0:02:21.5]} 13. Bxc6 {[%clk 0:01:17.2]} 13... bxc6 {[%clk
0:02:21.2]} 14. Nb3 {[%clk 0:01:16.8]} 14... Nd6 {[%clk 0:02:12]} 15. Qd4 {[%clk
0:01:14.2]} 15... Bf5 {[%clk 0:02:07.7]} 16. c3 {[%clk 0:01:02.3]} 16... Nc4
{[%clk 0:02:07.5]} 17. Re2 {[%clk 0:01:01.4]} 17... Rfe8 {[%clk 0:01:37.2]} 18.
Rae1 {[%clk 0:00:58.5]} 18... Rxe2 {[%clk 0:01:34.5]} 19. Rxe2 {[%clk
0:00:57.5]} 19... h6 {[%clk 0:01:34.7]} 20. h3 {[%clk 0:00:47.5]} 20... Rd8
{[%clk 0:01:30.1]} 21. Ne5 {[%clk 0:00:30.8]} 21... Be6 {[%clk 0:01:26.8]} 22.
Nc5 {[%clk 0:00:17.8]} 22... Nxe5 {[%clk 0:01:15.8]} 23. Rxe5 {[%clk 0:00:17.7]}
23... Qxb2 {[%clk 0:01:08.9]} 24. Nxe6 {[%clk 0:00:17.5]} 24... fxe6 {[%clk
0:01:08.7]} 25. Rxe6 {[%clk 0:00:18]} 25... Qb1+ {[%clk 0:01:03]} 26. Kh2 {[%clk
0:00:17.1]} 26... Rd7 {[%clk 0:00:54.3]} 27. Rxc6 {[%clk 0:00:15.2]} 27... Qxa2
{[%clk 0:00:47]} 28. Rc8+ {[%clk 0:00:13.9]} 28... Kh7 {[%clk 0:00:42.8]} 29.
Qd3+ {[%clk 0:00:13.7]} 29... g6 {[%clk 0:00:42.8]} 30. Qd4 {[%clk 0:00:12.6]}
30... Rg7 {[%clk 0:00:41.6]} 31. Qf6 {[%clk 0:00:12]} 31... Qe2 {[%clk
0:00:23.4]} 32. Qf8 {[%clk 0:00:11.5]} 32... Qe5+ {[%clk 0:00:16.6]} 33. f4
{[%clk 0:00:11.9]} 1-0

[Event "*** Titled Tuesday Blitz"]
[Site "Chess.com"]
[Date "2020.05.05"]
[Round "3"]
[White "DanielMieles1985"]
[Black "Marcin"]
[Result "0-1"]
[WhiteElo "2646"]
[BlackElo "2429"]
[TimeControl "180+1"]
[EndTime "10:29:18 PDT"]
[Termination "Marcin won on time"]

1. c4 {[%clk 0:02:08.8]} 1... Nf6 {[%clk 0:02:58.9]} 2. Nc3 {[%clk 0:02:09.2]}
2... g6 {[%clk 0:02:58.3]} 3. g3 {[%clk 0:02:09.4]} 3... Bg7 {[%clk 0:02:58.4]}
4. Bg2 {[%clk 0:02:10.3]} 4... O-O {[%clk 0:02:58.7]} 5. e4 {[%clk 0:02:10.2]}
5... e5 {[%clk 0:02:56.5]} 6. Nge2 {[%clk 0:02:10.6]} 6... d6 {[%clk 0:02:55.6]}
7. O-O {[%clk 0:02:11.1]} 7... Nc6 {[%clk 0:02:50.8]} 8. d3 {[%clk 0:02:11.4]}
8... Bg4 {[%clk 0:02:45.2]} 9. h3 {[%clk 0:02:09.8]} 9... Be6 {[%clk 0:02:45.3]}
10. f4 {[%clk 0:02:08.6]} 10... exf4 {[%clk 0:02:17.6]} 11. Nxf4 {[%clk
0:02:02.1]} 11... Bd7 {[%clk 0:02:15.4]} 12. Be3 {[%clk 0:01:58.9]} 12... Ne5
{[%clk 0:01:45.1]} 13. b3 {[%clk 0:01:49.3]} 13... c5 {[%clk 0:01:44.9]} 14. Qd2
{[%clk 0:01:49.2]} 14... a6 {[%clk 0:01:37.5]} 15. Rf2 {[%clk 0:01:23]} 15...
Bc6 {[%clk 0:01:34.3]} 16. Raf1 {[%clk 0:01:22.8]} 16... b5 {[%clk 0:01:32.4]}
17. g4 {[%clk 0:01:14.3]} 17... b4 {[%clk 0:01:29]} 18. Nce2 {[%clk 0:01:12.5]}
18... a5 {[%clk 0:01:29.2]} 19. g5 {[%clk 0:01:06.8]} 19... Ne8 {[%clk
0:01:23.9]} 20. d4 {[%clk 0:01:06.1]} 20... cxd4 {[%clk 0:01:22.2]} 21. Nxd4
{[%clk 0:01:07]} 21... Nc7 {[%clk 0:00:56]} 22. Nxc6 {[%clk 0:00:46.5]} 22...
Nxc6 {[%clk 0:00:56.9]} 23. e5 {[%clk 0:00:37.7]} 23... dxe5 {[%clk 0:00:46.2]}
24. Bxc6 {[%clk 0:00:37.3]} 24... exf4 {[%clk 0:00:46]} 25. Bxf4 {[%clk
0:00:27.6]} 25... Ra7 {[%clk 0:00:37.9]} 26. Bd6 {[%clk 0:00:13.9]} 26... Bc3
{[%clk 0:00:30.7]} 27. Qd3 {[%clk 0:00:11.1]} 27... Ra6 {[%clk 0:00:24.3]} 0-1

[Event "*** Titled Tuesday Blitz"]
[Site "Chess.com"]
[Date "2020.05.05"]
[Round "3"]
[White "jonaszmb"]
[Black "top_bu_tz"]
[Result "1-0"]
[WhiteElo "2490"]
[BlackElo "2224"]
[TimeControl "180+1"]
[EndTime "10:29:18 PDT"]
[Termination "jonaszmb won by resignation"]

1. d4 {[%clk 0:03:00.9]} 1... Nf6 {[%clk 0:02:58.9]} 2. c4 {[%clk 0:03:01.1]}
2... g6 {[%clk 0:02:58.9]} 3. Nf3 {[%clk 0:03:01.2]} 3... Bg7 {[%clk 0:02:59.1]}
4. g3 {[%clk 0:03:01.8]} 4... O-O {[%clk 0:02:57.4]} 5. Bg2 {[%clk 0:03:02.3]}
5... c5 {[%clk 0:02:57.3]} 6. d5 {[%clk 0:03:00.9]} 6... d6 {[%clk 0:02:57.2]}
7. O-O {[%clk 0:03:00.9]} 7... e6 {[%clk 0:02:45.8]} 8. dxe6 {[%clk 0:03:01.2]}
8... Bxe6 {[%clk 0:02:44.1]} 9. Ng5 {[%clk 0:03:00.7]} 9... Nc6 {[%clk
0:02:42.9]} 10. Nxe6 {[%clk 0:03:00.5]} 10... fxe6 {[%clk 0:02:43.8]} 11. Nc3
{[%clk 0:02:59.9]} 11... a6 {[%clk 0:02:40.7]} 12. Bf4 {[%clk 0:02:51.6]} 12...
Ne8 {[%clk 0:02:22]} 13. Qd2 {[%clk 0:02:40.7]} 13... Qb6 {[%clk 0:02:13.7]} 14.
b3 {[%clk 0:01:56.9]} 14... Rd8 {[%clk 0:01:17.6]} 15. Bh6 {[%clk 0:01:55.1]}
15... Ne7 {[%clk 0:01:09.3]} 16. Bxg7 {[%clk 0:01:51.8]} 16... Nxg7 {[%clk
0:01:09.1]} 17. Rad1 {[%clk 0:01:46]} 17... Ngf5 {[%clk 0:00:48]} 18. e3 {[%clk
0:01:40.6]} 18... Rd7 {[%clk 0:00:33.1]} 19. Ne4 {[%clk 0:01:36.4]} 19... d5
{[%clk 0:00:25.1]} 20. cxd5 {[%clk 0:01:28.5]} 20... exd5 {[%clk 0:00:26]} 21.
Ng5 {[%clk 0:01:03.3]} 21... Rfd8 {[%clk 0:00:25.2]} 22. e4 {[%clk 0:00:39.3]}
22... Nd4 {[%clk 0:00:17.1]} 23. exd5 {[%clk 0:00:36.2]} 23... Nxd5 {[%clk
0:00:15.9]} 24. h4 {[%clk 0:00:28]} 24... Qf6 {[%clk 0:00:13.3]} 25. Qd3 {[%clk
0:00:19.8]} 25... h6 {[%clk 0:00:06.2]} 26. Ne4 {[%clk 0:00:20.1]} 26... Qf7
{[%clk 0:00:03.9]} 27. h5 {[%clk 0:00:20.6]} 27... g5 {[%clk 0:00:03.7]} 28.
Nxc5 {[%clk 0:00:20.5]} 28... Rc7 {[%clk 0:00:03.5]} 29. Qxd4 {[%clk 0:00:20.4]}
29... b6 {[%clk 0:00:01.4]} 30. Bxd5 {[%clk 0:00:19.7]} 30... Rxd5 {[%clk
0:00:01.1]} 31. Qxd5 {[%clk 0:00:20.3]} 31... Qxd5 {[%clk 0:00:01.3]} 32. Rxd5
{[%clk 0:00:21.2]} 32... Rxc5 {[%clk 0:00:02.2]} 33. Rxc5 {[%clk 0:00:21.5]}
33... bxc5 {[%clk 0:00:03.1]} 34. Rc1 {[%clk 0:00:21.9]} 1-0

[Event "*** Titled Tuesday Blitz"]
[Site "Chess.com"]
[Date "2020.05.05"]
[Round "3"]
[White "chito89"]
[Black "vlad_Sid"]
[Result "0-1"]
[WhiteElo "2781"]
[BlackElo "2614"]
[TimeControl "180+1"]
[EndTime "10:29:21 PDT"]
[Termination "vlad_Sid won by resignation"]

1. d4 {[%clk 0:03:00.9]} 1... Nf6 {[%clk 0:02:59.5]} 2. c4 {[%clk 0:03:00.6]}
2... c5 {[%clk 0:03:00.1]} 3. d5 {[%clk 0:03:00]} 3... b5 {[%clk 0:03:00.4]} 4.
cxb5 {[%clk 0:02:59.5]} 4... a6 {[%clk 0:02:56.5]} 5. e3 {[%clk 0:02:58.9]} 5...
g6 {[%clk 0:02:56.7]} 6. Nc3 {[%clk 0:02:58.3]} 6... Bg7 {[%clk 0:02:54.6]} 7.
a4 {[%clk 0:02:57.8]} 7... O-O {[%clk 0:02:55]} 8. e4 {[%clk 0:02:51.3]} 8... e6
{[%clk 0:02:55.2]} 9. dxe6 {[%clk 0:02:34.7]} 9... fxe6 {[%clk 0:02:56.1]} 10.
e5 {[%clk 0:02:26.7]} 10... Ne8 {[%clk 0:02:49]} 11. Nf3 {[%clk 0:02:24.9]}
11... Bb7 {[%clk 0:02:44.3]} 12. Be2 {[%clk 0:01:59.4]} 12... axb5 {[%clk
0:02:41.1]} 13. Nxb5 {[%clk 0:01:50.8]} 13... Nc6 {[%clk 0:02:39.3]} 14. Bg5
{[%clk 0:01:47.7]} 14... Qa5+ {[%clk 0:02:37]} 15. Bd2 {[%clk 0:01:48.2]} 15...
Qb6 {[%clk 0:02:32]} 16. Bc3 {[%clk 0:01:48.5]} 16... Nc7 {[%clk 0:02:16.5]} 17.
Qxd7 {[%clk 0:01:31]} 17... Rf7 {[%clk 0:02:16.2]} 18. Qd1 {[%clk 0:01:27.2]}
18... Nxb5 {[%clk 0:01:38.1]} 19. axb5 {[%clk 0:01:23.3]} 19... Rxa1 {[%clk
0:01:35.3]} 20. Qxa1 {[%clk 0:01:22.2]} 20... Nd4 {[%clk 0:01:35.5]} 21. Bxd4
{[%clk 0:01:13.5]} 21... cxd4 {[%clk 0:01:33.6]} 22. O-O {[%clk 0:00:40.4]}
22... d3 {[%clk 0:01:13.7]} 23. Bxd3 {[%clk 0:00:35.9]} 23... Bxf3 {[%clk
0:01:14.1]} 24. gxf3 {[%clk 0:00:35.4]} 24... Bxe5 {[%clk 0:01:14.5]} 25. Qa8+
{[%clk 0:00:33.6]} 25... Kg7 {[%clk 0:01:13.9]} 26. Qc6 {[%clk 0:00:29]} 26...
Qd4 {[%clk 0:01:10.2]} 27. Qe4 {[%clk 0:00:29.4]} 27... Qd6 {[%clk 0:00:45.6]}
28. b6 {[%clk 0:00:28.9]} 28... Rf4 {[%clk 0:00:37.2]} 29. Qb7+ {[%clk 0:00:25]}
29... Rf7 {[%clk 0:00:36.7]} 30. Qe4 {[%clk 0:00:25.4]} 30... Rf4 {[%clk
0:00:22.7]} 31. Qe2 {[%clk 0:00:24.8]} 31... Rh4 {[%clk 0:00:16]} 32. Re1 {[%clk
0:00:18.5]} 32... Bc3 {[%clk 0:00:14.9]} 33. Qxe6 {[%clk 0:00:14.6]} 33... Qxh2+
{[%clk 0:00:13.1]} 34. Kf1 {[%clk 0:00:15.5]} 34... Qh1+ {[%clk 0:00:13.5]} 0-1

[Event "*** Titled Tuesday Blitz"]
[Site "Chess.com"]
[Date "2020.05.05"]
[Round "3"]
[White "Kobalia"]
[Black "FedaMaster"]
[Result "1-0"]
[WhiteElo "2749"]
[BlackElo "2532"]
[TimeControl "180+1"]
[EndTime "10:29:21 PDT"]
[Termination "Kobalia won by checkmate"]

1. e4 {[%clk 0:03:00.9]} 1... d5 {[%clk 0:02:54.3]} 2. exd5 {[%clk 0:03:00.6]}
2... Qxd5 {[%clk 0:02:55.2]} 3. d4 {[%clk 0:03:00.9]} 3... Nc6 {[%clk
0:02:54.4]} 4. Nf3 {[%clk 0:03:00.7]} 4... Bg4 {[%clk 0:02:54.2]} 5. Be2 {[%clk
0:03:00.9]} 5... O-O-O {[%clk 0:02:54.2]} 6. Be3 {[%clk 0:03:00.6]} 6... Nf6
{[%clk 0:02:26.1]} 7. c4 {[%clk 0:02:58.1]} 7... Qf5 {[%clk 0:02:06.7]} 8. d5
{[%clk 0:02:50.4]} 8... Bxf3 {[%clk 0:01:42.7]} 9. Bxf3 {[%clk 0:02:42.4]} 9...
Nb4 {[%clk 0:01:42.3]} 10. O-O {[%clk 0:02:34.5]} 10... Nc2 {[%clk 0:01:42]} 11.
Nc3 {[%clk 0:02:12]} 11... Nxe3 {[%clk 0:01:19.5]} 12. fxe3 {[%clk 0:02:10.9]}
12... Qe5 {[%clk 0:01:20.4]} 13. Qd4 {[%clk 0:01:48.5]} 13... Qxd4 {[%clk
0:00:59.5]} 14. exd4 {[%clk 0:01:48.5]} 14... e6 {[%clk 0:00:56.9]} 15. Rae1
{[%clk 0:01:47.9]} 15... exd5 {[%clk 0:00:33.9]} 16. Nxd5 {[%clk 0:01:47.6]}
16... Nxd5 {[%clk 0:00:32.9]} 17. Bxd5 {[%clk 0:01:47.4]} 17... c6 {[%clk
0:00:23.5]} 18. Bxf7 {[%clk 0:01:44.4]} 18... Rxd4 {[%clk 0:00:23.7]} 19. Re8+
{[%clk 0:01:43.4]} 19... Kc7 {[%clk 0:00:14.6]} 20. Be6 {[%clk 0:01:19.8]} 20...
Rd8 {[%clk 0:00:13.4]} 21. Rf7+ {[%clk 0:01:03.8]} 21... Kb6 {[%clk 0:00:12.7]}
22. Rxd8 {[%clk 0:01:01.4]} 22... Bc5+ {[%clk 0:00:12.9]} 23. Kf1 {[%clk
0:01:01.2]} 23... Rxd8 {[%clk 0:00:11.9]} 24. Rxg7 {[%clk 0:00:57.3]} 24... Rd2
{[%clk 0:00:11.6]} 25. Bc8 {[%clk 0:00:54.8]} 25... Ka5 {[%clk 0:00:09]} 26.
Rxb7 {[%clk 0:00:38.9]} 26... Rf2+ {[%clk 0:00:07.5]} 27. Ke1 {[%clk 0:00:38.3]}
27... Rxg2 {[%clk 0:00:05.5]} 28. a3 {[%clk 0:00:33.4]} 28... Bb6 {[%clk
0:00:05.8]} 29. c5 {[%clk 0:00:26.8]} 29... Bd8 {[%clk 0:00:04.8]} 30. Be6
{[%clk 0:00:20.5]} 30... Bh4+ {[%clk 0:00:03.8]} 31. Kf1 {[%clk 0:00:19.8]}
31... Rc2 {[%clk 0:00:03.1]} 32. b4+ {[%clk 0:00:18.5]} 32... Ka4 {[%clk
0:00:03.4]} 33. Rxa7+ {[%clk 0:00:17.3]} 33... Kb5 {[%clk 0:00:04]} 34. Ra5#
{[%clk 0:00:17.8]} 1-0

[Event "*** Titled Tuesday Blitz"]
[Site "Chess.com"]
[Date "2020.05.05"]
[Round "3"]
[White "kingofthenil"]
[Black "Gabrielian_Artur"]
[Result "0-1"]
[WhiteElo "2472"]
[BlackElo "2710"]
[TimeControl "180+1"]
[EndTime "10:29:22 PDT"]
[Termination "Gabrielian_Artur won by checkmate"]

1. d4 {[%clk 0:03:00.9]} 1... Nf6 {[%clk 0:02:59.7]} 2. c4 {[%clk 0:03:00.6]}
2... c5 {[%clk 0:02:59.8]} 3. d5 {[%clk 0:03:00.1]} 3... e6 {[%clk 0:03:00]} 4.
Nc3 {[%clk 0:02:59.2]} 4... exd5 {[%clk 0:03:00.2]} 5. cxd5 {[%clk 0:03:00.1]}
5... d6 {[%clk 0:03:00.5]} 6. e4 {[%clk 0:03:00.6]} 6... g6 {[%clk 0:03:00.6]}
7. Nge2 {[%clk 0:03:00.6]} 7... h5 {[%clk 0:02:59.6]} 8. Bg5 {[%clk 0:01:22.8]}
8... Bg7 {[%clk 0:02:58.9]} 9. Qd2 {[%clk 0:01:21.6]} 9... a6 {[%clk 0:02:49.9]}
10. a4 {[%clk 0:01:20.6]} 10... Qe7 {[%clk 0:02:39.5]} 11. f3 {[%clk 0:01:19.6]}
11... Nbd7 {[%clk 0:02:35.9]} 12. Nf4 {[%clk 0:00:53.9]} 12... Ne5 {[%clk
0:02:14.2]} 13. Be2 {[%clk 0:00:53.7]} 13... O-O {[%clk 0:02:06.3]} 14. h4
{[%clk 0:00:26.1]} 14... Qc7 {[%clk 0:01:57.3]} 15. O-O-O {[%clk 0:00:24.9]}
15... b5 {[%clk 0:01:55.6]} 16. g4 {[%clk 0:00:25.8]} 16... b4 {[%clk
0:01:52.4]} 17. Nb1 {[%clk 0:00:24.3]} 17... hxg4 {[%clk 0:01:50.9]} 18. h5
{[%clk 0:00:23.8]} 18... gxf3 {[%clk 0:01:49.9]} 19. h6 {[%clk 0:00:16.7]} 19...
Nxe4 {[%clk 0:01:31]} 20. Qe3 {[%clk 0:00:13.5]} 20... fxe2 {[%clk 0:01:21.1]}
21. Rdg1 {[%clk 0:00:05.6]} 21... e1=Q+ {[%clk 0:00:38.8]} 22. Qxe1 {[%clk
0:00:04]} 22... Nxg5 {[%clk 0:00:31.6]} 23. hxg7 {[%clk 0:00:04.2]} 23... Kxg7
{[%clk 0:00:31.6]} 24. Qh4 {[%clk 0:00:02.9]} 24... Nef3 {[%clk 0:00:19.9]} 25.
Qh6+ {[%clk 0:00:02.2]} 25... Kf6 {[%clk 0:00:20.1]} 26. Qxf8 {[%clk 0:00:02.2]}
26... Qe7 {[%clk 0:00:19]} 27. Qh8+ {[%clk 0:00:01.7]} 27... Kf5 {[%clk
0:00:19.1]} 28. Nd3 {[%clk 0:00:02.1]} 28... Qe3+ {[%clk 0:00:18.7]} 29. Kc2
{[%clk 0:00:02.5]} 29... Nd4+ {[%clk 0:00:18.3]} 30. Kd1 {[%clk 0:00:02.2]}
30... Qe2+ {[%clk 0:00:17.7]} 31. Kc1 {[%clk 0:00:02.1]} 31... Qc2# {[%clk
0:00:17.9]} 0-1

[Event "*** Titled Tuesday Blitz"]
[Site "Chess.com"]
[Date "2020.05.05"]
[Round "3"]
[White "Susal_De_Silva"]
[Black "talman67"]
[Result "1-0"]
[WhiteElo "2244"]
[BlackElo "2541"]
[TimeControl "180+1"]
[EndTime "10:29:22 PDT"]
[Termination "Susal_De_Silva won by resignation"]

1. e4 {[%clk 0:03:00.9]} 1... e5 {[%clk 0:02:59.7]} 2. Nf3 {[%clk 0:03:00.3]}
2... Nc6 {[%clk 0:03:00.1]} 3. Bc4 {[%clk 0:02:59.3]} 3... Bc5 {[%clk
0:02:59.8]} 4. c3 {[%clk 0:02:59.2]} 4... Nf6 {[%clk 0:02:59.6]} 5. d3 {[%clk
0:02:58.6]} 5... d6 {[%clk 0:02:59.2]} 6. O-O {[%clk 0:02:58.2]} 6... a5 {[%clk
0:02:59.2]} 7. Nbd2 {[%clk 0:02:55.2]} 7... O-O {[%clk 0:02:55.4]} 8. h3 {[%clk
0:02:54.5]} 8... a4 {[%clk 0:02:55.6]} 9. Bb5 {[%clk 0:02:42.8]} 9... Bd7 {[%clk
0:02:55.2]} 10. Bxa4 {[%clk 0:02:39.2]} 10... Rxa4 {[%clk 0:02:56.1]} 11. Qxa4
{[%clk 0:02:39]} 11... Nb4 {[%clk 0:02:56.7]} 12. Qd1 {[%clk 0:02:36.1]} 12...
Nxd3 {[%clk 0:02:57.2]} 13. Nb3 {[%clk 0:02:31.8]} 13... Bxf2+ {[%clk
0:02:55.2]} 14. Rxf2 {[%clk 0:02:30]} 14... Nxf2 {[%clk 0:02:55.2]} 15. Kxf2
{[%clk 0:02:30]} 15... Nxe4+ {[%clk 0:02:55.7]} 16. Kg1 {[%clk 0:02:30.1]} 16...
Bc6 {[%clk 0:02:46.6]} 17. Be3 {[%clk 0:02:26.2]} 17... f5 {[%clk 0:02:45.7]}
18. Na5 {[%clk 0:02:16.9]} 18... f4 {[%clk 0:02:38]} 19. Bf2 {[%clk 0:02:03.6]}
19... Nxf2 {[%clk 0:02:35.9]} 20. Kxf2 {[%clk 0:02:03.1]} 20... e4 {[%clk
0:02:36.8]} 21. Nxc6 {[%clk 0:01:47.7]} 21... bxc6 {[%clk 0:02:37.7]} 22. Nd4
{[%clk 0:01:46.4]} 22... Qh4+ {[%clk 0:02:32.8]} 23. Kg1 {[%clk 0:01:46.2]}
23... f3 {[%clk 0:02:30.3]} 24. Qd2 {[%clk 0:01:12.4]} 24... Qg3 {[%clk
0:02:23.7]} 25. Qf2 {[%clk 0:01:09.6]} 25... Qg5 {[%clk 0:02:20.7]} 26. Re1
{[%clk 0:01:03.5]} 26... Qg6 {[%clk 0:01:54.8]} 27. Nxc6 {[%clk 0:00:54]} 27...
Qe8 {[%clk 0:01:40.8]} 28. Nd4 {[%clk 0:00:51.1]} 28... d5 {[%clk 0:01:23.1]}
29. g4 {[%clk 0:00:44.6]} 29... c5 {[%clk 0:01:14.6]} 30. Nf5 {[%clk 0:00:43.8]}
30... Qe5 {[%clk 0:01:15.1]} 31. Rd1 {[%clk 0:00:27.1]} 31... Rd8 {[%clk
0:01:02.1]} 32. Qxc5 {[%clk 0:00:24.4]} 32... g6 {[%clk 0:00:50.7]} 33. Rxd5
{[%clk 0:00:20.1]} 33... f2+ {[%clk 0:00:28.2]} 34. Kf1 {[%clk 0:00:17.3]} 34...
Qe8 {[%clk 0:00:19]} 35. Rxd8 {[%clk 0:00:14.3]} 35... Qxd8 {[%clk 0:00:19.9]}
36. Qd5+ {[%clk 0:00:14.6]} 1-0

[Event "*** Titled Tuesday Blitz"]
[Site "Chess.com"]
[Date "2020.05.05"]
[Round "3"]
[White "Piotrek1979"]
[Black "asimali1977"]
[Result "1-0"]
[WhiteElo "2276"]
[BlackElo "1954"]
[TimeControl "180+1"]
[EndTime "10:29:22 PDT"]
[Termination "Piotrek1979 won on time"]

1. Nf3 {[%clk 0:03:00.9]} 1... d6 {[%clk 0:02:58.8]} 2. d4 {[%clk 0:02:57.5]}
2... Qd7 {[%clk 0:02:52.6]} 3. e4 {[%clk 0:02:55.2]} 3... e5 {[%clk 0:02:48.7]}
4. dxe5 {[%clk 0:02:51.9]} 4... Nc6 {[%clk 0:02:45.1]} 5. exd6 {[%clk
0:02:38.5]} 5... Bxd6 {[%clk 0:02:42.1]} 6. Bb5 {[%clk 0:02:31.5]} 6... Nge7
{[%clk 0:02:34.2]} 7. O-O {[%clk 0:02:26.4]} 7... O-O {[%clk 0:02:29.8]} 8. Nc3
{[%clk 0:01:46.8]} 8... Qg4 {[%clk 0:02:28.4]} 9. Be2 {[%clk 0:01:38]} 9... Qh5
{[%clk 0:02:20.2]} 10. Nd5 {[%clk 0:00:59.5]} 10... Bg4 {[%clk 0:02:12.3]} 11.
h3 {[%clk 0:00:50.4]} 11... Bxh3 {[%clk 0:01:56.7]} 12. gxh3 {[%clk 0:00:50.5]}
12... Qxh3 {[%clk 0:01:56.5]} 13. Nxe7+ {[%clk 0:00:50.1]} 13... Nxe7 {[%clk
0:01:55.1]} 14. e5 {[%clk 0:00:50.4]} 14... Bc5 {[%clk 0:01:49.4]} 15. Be3
{[%clk 0:00:49.2]} 15... Rad8 {[%clk 0:01:45.9]} 16. Qe1 {[%clk 0:00:48.8]}
16... Bxe3 {[%clk 0:01:33.1]} 17. fxe3 {[%clk 0:00:49.7]} 17... Nf5 {[%clk
0:01:29.4]} 18. Rf2 {[%clk 0:00:50.1]} 18... Nxe3 {[%clk 0:01:23.7]} 19. Rh2
{[%clk 0:00:49.9]} 19... Qg4+ {[%clk 0:01:17.1]} 20. Kh1 {[%clk 0:00:50]} 20...
Nf5 {[%clk 0:01:04]} 21. Rg2 {[%clk 0:00:47.6]} 21... Qh5+ {[%clk 0:00:57.1]}
22. Kg1 {[%clk 0:00:47.7]} 22... Ne3 {[%clk 0:00:43.1]} 23. Rg5 {[%clk
0:00:47.5]} 23... Qh6 {[%clk 0:00:34.6]} 24. Qg3 {[%clk 0:00:48.4]} 24... Nxc2
{[%clk 0:00:29.6]} 25. Rf1 {[%clk 0:00:48.1]} 25... Ne3 {[%clk 0:00:23.7]} 26.
Rf2 {[%clk 0:00:48.4]} 26... g6 {[%clk 0:00:17.2]} 27. Rh2 {[%clk 0:00:48.2]}
27... Qg7 {[%clk 0:00:13.8]} 28. Nh4 {[%clk 0:00:38.9]} 28... Rd2 {[%clk
0:00:08.6]} 29. Qxe3 {[%clk 0:00:38.1]} 29... Rxb2 {[%clk 0:00:05.6]} 30. Nf5
{[%clk 0:00:37.9]} 30... Rb1+ {[%clk 0:00:04.7]} 31. Kg2 {[%clk 0:00:37.1]}
31... Qh8 {[%clk 0:00:03.3]} 32. Nh6+ {[%clk 0:00:26.1]} 32... Kg7 {[%clk
0:00:02.2]} 33. Qf4 {[%clk 0:00:26.4]} 33... f5 {[%clk 0:00:01.6]} 34. exf6+
{[%clk 0:00:27.3]} 34... Rxf6 {[%clk 0:00:01.4]} 35. Qxc7+ {[%clk 0:00:27.9]}
1-0